bitfinex/quotes_SOLUSD_20250106
["timestamp","ask_amount","ask_price","bid_price","bid_amount"]
[1736182890026,0.09627678,220.72,220.66,13.53121922]
[1736182890397,13.53121922,220.71,220.64,13.53121922]
[1736182890798,13.627496,220.72,220.65,13.53121922]
[1736182891220,13.53121922,220.71,220.64,13.53121922]
[1736182891412,13.53121922,220.71,220.57,11.3337]
[1736182891413,13.53121922,220.7,220.63,13.53121922]
[1736182891724,0.25098,220.69,220.63,13.53121922]
[1736182891923,0.25098,220.69,220.64,13.53121922]
[1736182892096,0.09627678,220.72,220.67,13.53121922]
[1736182892621,0.34725678,220.72,220.66,13.53121922]
[1736182892942,0.34725678,220.72,220.67,13.53121922]
[1736182893434,2.3,220.71,220.67,13.53121922]
[1736182893929,0.09912001,220.68,220.67,13.53121922]
[1736182896727,0.09912001,220.68,220.65,13.53121922]
[1736182897330,0.09912001,220.68,220.66,13.53121922]
[1736182898025,0.09912001,220.68,220.65,13.53121922]
[1736182898727,0.09912001,220.68,220.64,13.53121922]
[1736182899302,0.09912001,220.68,220.66,13.53121922]
[1736182900012,0.09912001,220.68,220.67,13.53121922]
[1736182900524,0.09912001,220.68,220.66,13.53121922]
[1736182901172,0.09912001,220.68,220.67,13.53121922]
[1736182902625,0.09912001,220.68,220.64,13.53121922]
[1736182902954,0.09912001,220.68,220.62,13.53121922]
[1736182903741,0.22461001,220.68,220.62,13.53121922]
[1736182904111,13.65670922,220.66,220.59,13.53121922]
[1736182905020,13.53121922,220.63,220.57,13.53121922]
[1736182905228,2.3,220.62,220.57,13.53121922]
[1736182905430,15.83121922,220.62,220.55,13.53121922]
[1736182906520,0.25098,220.61,220.55,13.53121922]
[1736182906943,0.25098,220.61,220.56,13.53121922]
[1736182907617,0.25098,220.61,220.55,13.53121922]
[1736182907817,13.78219922,220.61,220.54,13.53121922]
[1736182908251,13.53121922,220.59,220.53,13.53121922]
[1736182908734,0.12549,220.58,220.53,13.53121922]
[1736182908936,0.12549,220.58,220.52,13.53121922]
[1736182909139,13.65670922,220.58,220.51,13.53121922]
[1736182909945,13.53121922,220.57,220.51,13.53121922]
[1736182910246,0.12549,220.56,220.51,13.53121922]
[1736182911158,0.12549,220.57,220.52,13.53121922]
[1736182911660,0.12549,220.57,220.51,13.53121922]
[1736182911826,0.25098,220.57,220.51,13.53121922]
[1736182912336,15.32349922,220.57,220.5,13.53121922]
[1736182912564,6.1265,220.56,220.5,13.53121922]
[1736182913260,6.1265,220.56,220.51,13.53121922]
[1736182914060,0.09947609,220.52,220.49,13.53121922]
[1736182915858,0.09947609,220.52,220.48,13.53121922]
[1736182916662,13.53121922,220.51,220.44,13.53121922]
[1736182916960,13.53121922,220.5,220.44,13.53121922]
[1736182917462,13.53121922,220.51,220.44,13.53121922]
[1736182917655,13.53121922,220.51,220.45,13.53121922]
[1736182918696,2.3,220.5,220.48,13.53121922]
[1736182919045,0.09947609,220.52,220.49,13.53121922]
[1736182919349,0.09947609,220.52,220.44,13.53121922]
[1736182919350,0.09947609,220.52,220.51,13.53121922]
[1736182920468,0.09947609,220.52,220.5,13.53121922]
[1736182920872,0.09947609,220.52,220.51,13.53121922]
[1736182922451,0.09947609,220.52,220.5,13.53121922]
[1736182923171,0.09947609,220.52,220.49,13.53121922]
[1736182924084,0.09947609,220.52,220.46,13.53121922]
[1736182924292,0.22496609,220.52,220.46,13.53121922]
[1736182924601,13.75618531,220.52,220.46,13.53121922]
[1736182924883,13.75618531,220.52,220.44,13.53121922]
[1736182924884,0.12549,220.5,220.44,13.53121922]
[1736182925258,0.12549,220.5,220.45,13.53121922]
[1736182926284,2.28,220.51,220.46,13.53121922]
[1736182926466,2.28,220.51,220.48,13.53121922]
[1736182926855,2.28,220.51,220.5,13.53121922]
[1736182927474,2.28,220.51,220.48,13.53121922]
[1736182929184,2.28,220.51,220.5,13.53121922]
[1736182929564,0.09947609,220.52,220.5,13.53121922]
[1736182929756,0.09947609,220.52,220.51,13.53121922]
[1736182930270,0.09947609,220.52,220.5,13.53121922]
[1736182930785,0.09947609,220.52,220.51,13.53121922]
[1736182931462,0.09947609,220.52,220.5,13.53121922]
[1736182931660,0.09947609,220.52,220.49,13.53121922]
[1736182931889,0.09947609,220.52,220.5,13.53121922]
[1736182932881,0.09947609,220.52,220.49,13.53121922]
[1736182933088,0.09947609,220.52,220.47,13.53121922]
[1736182933385,0.09947609,220.52,220.49,13.53121922]
[1736182933583,0.09947609,220.52,220.48,13.53121922]
[1736182933783,0.0993008,220.5,220.48,13.53121922]
[1736182933986,0.0993008,220.5,220.47,13.53121922]
[1736182934861,0.0993008,220.5,220.46,13.53121922]
[1736182935373,0.0993008,220.5,220.45,13.53121922]
[1736182935887,0.0993008,220.5,220.47,13.53121922]
[1736182936183,0.0993008,220.5,220.49,13.53121922]
[1736182936584,0.0993008,220.5,220.48,13.53121922]
[1736182936781,0.0993008,220.5,220.47,13.53121922]
[1736182938487,0.0993008,220.5,220.45,13.53121922]
[1736182938786,13.63052002,220.5,220.44,13.53121922]
[1736182938978,15.91052002,220.5,220.44,13.53121922]
[1736182939289,2.3793008,220.5,220.45,13.53121922]
[1736182939580,2.3793008,220.5,220.46,13.53121922]
[1736182940871,2.3793008,220.5,220.42,23.776884]
[1736182940872,15.91052002,220.5,220.43,13.53121922]
[1736182941473,2.3793008,220.5,220.44,13.53121922]
[1736182941986,13.53121922,220.47,220.35,1.57]
[1736182942288,13.53121922,220.47,220.4,13.53121922]
[1736182942581,13.63052002,220.5,220.43,13.53121922]
[1736182942798,2.28,220.48,220.44,13.53121922]
[1736182943969,2.28,220.48,220.42,13.53121922]
[1736182944591,2.28,220.48,220.43,13.53121922]
[1736182944795,2.28,220.48,220.44,13.53121922]
[1736182945297,2.28,220.48,220.43,13.53121922]
[1736182946480,0.0993008,220.5,220.45,13.53121922]
[1736182946792,0.0993008,220.5,220.41,0.12549]
[1736182946793,2.3993008,220.5,220.46,13.53121922]
[1736182947185,2.3993008,220.5,220.45,13.53121922]
[1736182947571,2.3993008,220.5,220.44,13.53121922]
[1736182948389,2.3993008,220.5,220.46,13.53121922]
[1736182949088,2.3993008,220.5,220.49,13.53121922]
[1736182949089,0.0993008,220.5,220.49,13.53121922]
[1736182949292,0.0993008,220.5,220.49,37.30810322]
[1736182949597,0.0993008,220.5,220.49,37.43359322]
[1736182950372,0.0993008,220.5,220.49,48.77189322]
[1736182950574,0.08458276,220.51,220.49,49.02287322]
[1736182950795,8.276e-05,220.51,220.5,38.36457187]
[1736182950979,6.38e-05,220.52,220.5,38.36457187]
[1736182951298,2.193e-05,220.53,220.52,24.153354]
[1736182951482,2.193e-05,220.53,220.52,51.8957003]
[1736182951687,0.09589565,220.54,220.53,52.76059244]
[1736182952304,0.09589565,220.54,220.53,38.97839322]
[1736182954003,0.19482789,220.54,220.53,38.97839322]
[1736182955394,0.09893224,220.54,220.53,38.97839322]
[1736182960217,0.09893224,220.54,220.53,38.85290322]
[1736182960429,0.09893224,220.54,220.53,37.30810322]
[1736182961485,0.09893224,220.54,220.53,37.43359322]
[1736182962706,0.09893224,220.54,220.53,37.30810322]
[1736182965218,0.09893224,220.54,220.53,13.53121922]
[1736182968690,0.09893224,220.54,220.51,13.53121922]
[1736182968895,0.09893224,220.54,220.47,20.0]
[1736182968896,0.09893224,220.54,220.5,13.53121922]
[1736182969206,0.09893224,220.54,220.51,13.53121922]
[1736182969405,0.09893224,220.54,220.52,13.53121922]
[1736182969714,0.09893224,220.54,220.53,13.53121922]
[1736182970427,0.09893224,220.54,220.52,13.53121922]
[1736182971731,0.09893224,220.54,220.53,13.53121922]
[1736182973124,0.09893224,220.54,220.53,8.68454507]
[1736182973813,0.18510588,220.54,220.53,8.68454507]
[1736182975428,0.08617364,220.54,220.53,8.68454507]
[1736182980134,0.08617364,220.54,220.53,32.58691907]
[1736182980314,0.08617364,220.54,220.53,67.32509935]
[1736182980520,0.09855435,220.55,220.54,23.902374]
[1736182980719,0.09855435,220.55,220.54,67.32509935]
[1736182982630,0.09855435,220.55,220.54,32.58691907]
[1736182984310,0.09855435,220.55,220.54,67.32509935]
[1736182984631,0.09855435,220.55,220.54,67.57607935]
[1736182986029,0.08929032,220.56,220.55,35.112084]
[1736182986249,0.08929032,220.56,220.55,79.21468604]
[1736182988238,0.08929032,220.56,220.55,32.46142907]
[1736182988923,0.08929032,220.56,220.55,32.58691907]
[1736182989123,0.08929032,220.56,220.55,23.902374]
[1736182989446,0.08929032,220.56,220.55,67.32509935]
[1736182990346,0.08929032,220.56,220.51,8.68454507]
[1736182990547,1.614,220.55,220.45,8.68454507]
[1736182990719,0.08929032,220.56,220.48,8.68454507]
[1736182991035,0.08929032,220.56,220.42,0.68025614]
[1736182991036,0.08929032,220.56,220.5,8.68454507]
[1736182991266,0.08929032,220.56,220.5,13.57538852]
[1736182991620,13.66467884,220.56,220.48,13.57538852]
[1736182991817,13.57538852,220.53,220.45,13.57538852]
[1736182992146,15.85538852,220.52,220.44,13.57538852]
[1736182992351,2.28,220.52,220.45,13.57538852]
[1736182992639,2.28,220.52,220.46,13.57538852]
[1736182993245,2.28,220.52,220.44,13.57538852]
[1736182993246,15.85538852,220.52,220.44,13.57538852]
[1736182993734,0.09915012,220.45,220.44,13.57538852]
[1736182994346,0.09915012,220.45,220.42,13.57538852]
[1736182996663,0.09915012,220.45,220.41,13.57538852]
[1736182997152,0.09915012,220.45,220.4,13.57538852]
[1736182997336,0.09915012,220.45,220.39,13.57538852]
[1736182997531,2.28,220.44,220.39,13.57538852]
[1736183002247,15.85538852,220.44,220.38,13.57538852]
[1736183002750,13.57538852,220.42,220.35,13.57538852]
[1736183004829,8.1662,220.4,220.3,11.3478]
[1736183005030,8.1662,220.4,220.33,13.57538852]
[1736183005031,21.74158852,220.4,220.33,13.57538852]
[1736183005227,21.74158852,220.4,220.26,11.3499]
[1736183005451,13.57538852,220.38,220.31,13.57538852]
[1736183005776,13.57538852,220.38,220.32,13.57538852]
[1736183006567,13.57538852,220.38,220.31,13.57538852]
[1736183006770,13.57538852,220.38,220.32,13.57538852]
[1736183007654,13.57538852,220.37,220.31,13.57538852]
[1736183007843,2.28,220.36,220.31,13.57538852]
[1736183009445,2.28,220.36,220.32,13.57538852]
[1736183011675,2.28,220.37,220.35,13.57538852]
[1736183011842,2.28,220.37,220.34,13.57538852]
[1736183013058,2.28,220.37,220.34,8.7013536]
[1736183013468,33.2530813,220.39,220.34,8.7013536]
[1736183013648,41.9544349,220.39,220.3,20.0]
[1736183013861,0.09874709,220.35,220.31,8.7013536]
[1736183014570,0.09874709,220.35,220.32,8.7013536]
[1736183014764,0.09874709,220.35,220.31,8.7013536]
[1736183016673,0.09874709,220.35,220.29,20.0]
[1736183016839,0.09874709,220.35,220.32,8.7013536]
[1736183017185,0.09874709,220.35,220.33,8.7013536]
[1736183017480,0.09874709,220.35,220.34,8.7013536]
[1736183018462,0.09874709,220.35,220.29,18.2013536]
[1736183018669,0.09874709,220.35,220.33,8.7013536]
[1736183019446,0.09874709,220.35,220.32,8.7013536]
[1736183020079,0.09874709,220.35,220.29,18.2013536]
[1736183020249,0.09874709,220.35,220.32,8.7013536]
[1736183020765,8.80010069,220.35,220.29,8.7013536]
[1736183020966,0.09874709,220.35,220.32,8.7013536]
[1736183021172,0.09874709,220.35,220.34,8.7013536]
[1736183021638,0.09874709,220.35,220.29,20.0]
[1736183021839,0.09874709,220.35,220.33,8.7013536]
[1736183022563,0.09874709,220.35,220.34,8.7013536]
[1736183023042,0.09874709,220.35,220.34,32.6037276]
[1736183023472,0.09874709,220.35,220.34,8.7013536]
[1736183025158,0.09874709,220.35,220.34,13.59306818]
[1736183025577,0.09874709,220.35,220.34,13.71855818]
[1736183026400,0.09874709,220.35,220.34,33.71855818]
[1736183026688,0.09874709,220.35,220.34,57.49544218]
[1736183028156,0.09874709,220.35,220.34,33.59306818]
[1736183028357,0.09874709,220.35,220.34,20.0]
[1736183028587,0.09874709,220.35,220.34,33.59306818]
[1736183028811,0.09874709,220.35,220.34,13.59306818]
[1736183030882,0.09874709,220.35,220.34,37.49544218]
[1736183031592,4.709e-05,220.35,220.34,39.32002218]
[1736183032872,4.709e-05,220.35,220.34,15.16666818]
[1736183033077,4.709e-05,220.35,220.34,13.59306818]
[1736183033481,4.709e-05,220.35,220.34,57.49544218]
[1736183033891,0.09321979,220.35,220.34,57.49544218]
[1736183035204,0.09321979,220.35,220.34,33.59306818]
[1736183035707,0.0931727,220.35,220.34,33.59306818]
[1736183036104,0.0931727,220.35,220.34,13.59306818]
[1736183040402,0.0931727,220.35,220.34,14.39914648]
[1736183040573,0.0931727,220.35,220.34,14.65012648]
[1736183040779,0.09665706,220.36,220.35,35.122384]
[1736183040982,0.09273466,220.37,220.36,23.776884]
[1736183041193,0.09273466,220.37,220.36,38.05039021]
[1736183041921,0.09273466,220.37,220.36,38.42686021]
[1736183042520,0.09273466,220.37,220.36,38.28745261]
[1736183043327,0.0972197,220.38,220.37,11.72097]
[1736183043617,6.4612,220.5,220.4,20.0]
[1736183043776,6.4612,220.5,220.4,33.59306818]
[1736183044416,6.4612,220.5,220.4,44.93606818]
[1736183044828,6.4612,220.5,220.4,69.08942218]
[1736183044981,1.5494,220.51,220.41,23.776884]
[1736183045181,1.5494,220.51,220.41,52.01976584]
[1736183045421,2.28,220.53,220.41,52.01976584]
[1736183045591,2.28,220.53,220.41,38.42669766]
[1736183045926,2.28,220.53,220.41,37.49544218]
[1736183046136,15.87306818,220.53,220.41,37.49544218]
[1736183046597,13.59306818,220.52,220.41,37.49544218]
[1736183047442,2.28,220.53,220.41,37.74642218]
[1736183047723,4.112e-05,220.42,220.41,51.33949036]
[1736183049984,8.6986,220.55,220.42,0.37647]
[1736183050176,8.6986,220.55,220.42,62.68139036]
[1736183050383,8.6986,220.55,220.42,49.08832218]
[1736183050817,22.29166818,220.55,220.42,49.08832218]
[1736183051811,8.6986,220.55,220.42,49.08832218]
[1736183052010,2.044e-05,220.43,220.42,62.68139036]
[1736183052521,6.4186,220.55,220.47,0.12549]
[1736183052720,2.28,220.59,220.54,13.59306818]
[1736183052929,2.28,220.59,220.55,13.59306818]
[1736183053080,8.0244,220.61,220.56,13.59306818]
[1736183053285,23.89746818,220.61,220.54,13.59306818]
[1736183055808,13.59306818,220.6,220.53,13.59306818]
[1736183056104,13.59306818,220.58,220.5,13.59306818]
[1736183056503,13.59306818,220.56,220.49,13.59306818]
[1736183056688,13.59306818,220.52,220.39,16.49629803]
[1736183056883,13.59306818,220.51,220.44,13.59306818]
[1736183057098,13.59306818,220.5,220.43,13.59306818]
[1736183057408,13.59306818,220.49,220.42,13.59306818]
[1736183059686,13.59306818,220.48,220.41,13.59306818]
[1736183060283,13.59306818,220.46,220.39,13.59306818]
[1736183060598,13.59306818,220.46,220.4,13.59306818]
[1736183060998,13.59306818,220.46,220.39,33.59306818]
[1736183063305,15.87306818,220.45,220.39,33.59306818]
[1736183063615,15.87306818,220.45,220.38,33.59306818]
[1736183064689,13.59306818,220.43,220.36,13.59306818]
[1736183066114,13.71855818,220.44,220.37,13.59306818]
[1736183067315,13.59306818,220.43,220.36,13.59306818]
[1736183067492,13.59306818,220.42,220.35,33.59306818]
[1736183067693,13.59306818,220.43,220.36,13.59306818]
[1736183068020,13.71855818,220.44,220.37,13.59306818]
[1736183068405,13.71855818,220.43,220.36,13.59306818]
[1736183068598,13.59306818,220.41,220.34,13.59306818]
[1736183068913,13.59306818,220.4,220.33,13.59306818]
[1736183069088,13.59306818,220.39,220.32,13.59306818]
[1736183070215,13.59306818,220.37,220.31,13.59306818]
[1736183070921,15.87306818,220.37,220.31,13.59306818]
[1736183071502,15.87306818,220.37,220.24,0.12549]
[1736183071503,13.59306818,220.35,220.28,13.59306818]
[1736183071705,15.87306818,220.37,220.3,13.59306818]
[1736183073123,13.59306818,220.35,220.29,13.59306818]
[1736183073310,13.59306818,220.36,220.29,13.59306818]
[1736183074324,15.87306818,220.37,220.3,13.59306818]
[1736183075226,2.28,220.37,220.32,13.59306818]
[1736183076729,2.28,220.37,220.31,13.59306818]
[1736183077127,2.28,220.37,220.32,8.70334402]
[1736183077329,2.28,220.37,220.31,8.70334402]
[1736183081352,10.98334402,220.38,220.31,8.70334402]
[1736183082727,10.98334402,220.38,220.27,23.776884]
[1736183083028,8.70334402,220.37,220.3,8.70334402]
[1736183085728,24.4049203,220.38,220.32,8.70334402]
[1736183085929,30.82826432,220.38,220.31,8.70334402]
[1736183086109,33.10826432,220.38,220.31,8.70334402]
[1736183086526,8.70334402,220.37,220.3,8.70334402]
[1736183086832,8.70334402,220.36,220.3,8.70334402]
[1736183087233,8.70334402,220.37,220.3,8.70334402]
[1736183087408,8.70334402,220.37,220.31,8.70334402]
[1736183087608,8.70334402,220.35,220.29,8.70334402]
[1736183088641,8.70334402,220.35,220.28,8.70334402]
[1736183088927,8.70334402,220.35,220.25,20.0]
[1736183088928,8.70334402,220.35,220.29,8.70334402]
[1736183089131,8.70334402,220.36,220.29,8.70334402]
[1736183090249,8.70334402,220.37,220.3,8.70334402]
[1736183090426,8.70334402,220.37,220.31,8.70334402]
[1736183090920,8.70334402,220.37,220.3,8.70334402]
[1736183091121,8.70334402,220.36,220.29,8.70334402]
[1736183091439,8.70334402,220.35,220.29,8.70334402]
[1736183091735,8.70334402,220.33,220.24,20.0]
[1736183092049,8.70334402,220.33,220.27,8.70334402]
[1736183094414,8.70334402,220.33,220.26,8.70334402]
[1736183095126,8.70334402,220.33,220.21,21.523]
[1736183095451,8.70334402,220.33,220.26,8.70334402]
[1736183096132,8.70334402,220.33,220.27,8.70334402]
[1736183096926,1.6367,220.34,220.18,1.5962]
[1736183096927,8.70334402,220.3,220.18,1.5962]
[1736183097225,10.98334402,220.3,220.24,8.70334402]
[1736183097541,2.28,220.3,220.25,8.70334402]
[1736183097755,2.28,220.3,220.24,8.70334402]
[1736183097934,10.98334402,220.3,220.24,8.70334402]
[1736183098119,10.98334402,220.3,220.23,8.70334402]
[1736183098320,8.70334402,220.29,220.23,8.70334402]
[1736183098840,10.98334402,220.3,220.23,8.70334402]
[1736183099348,8.70334402,220.29,220.23,8.70334402]
[1736183099642,8.70334402,220.28,220.21,8.70334402]
[1736183100238,8.70334402,220.27,220.21,8.70334402]
[1736183100735,8.70334402,220.28,220.22,8.70334402]
[1736183101330,28.95432402,220.29,220.23,8.70334402]
[1736183102035,8.70334402,220.28,220.18,20.0]
[1736183102236,8.70334402,220.26,220.2,8.70334402]
[1736183102430,8.70334402,220.27,220.21,8.70334402]
[1736183103150,8.70334402,220.27,220.15,23.776884]
[1736183103330,8.70334402,220.27,220.11,6.40178884]
[1736183103331,8.70334402,220.22,220.11,11.39738884]
[1736183103535,8.70334402,220.21,220.15,8.70334402]
[1736183104145,2.28,220.22,220.17,8.70334402]
[1736183104346,2.28,220.22,220.2,8.70334402]
[1736183104536,2.28,220.25,220.21,8.70334402]
[1736183104734,2.28,220.25,220.2,8.70334402]
[1736183106153,6.6373,220.28,220.22,8.70334402]
[1736183106328,2.28,220.27,220.23,8.70334402]
[1736183106532,2.28,220.29,220.24,8.70334402]
[1736183106931,10.98334402,220.29,220.23,8.70334402]
[1736183107532,1.6619,220.3,220.26,8.70334402]
[1736183107735,24.41003907,220.32,220.28,8.70334402]
[1736183108045,24.41003907,220.32,220.22,34.81337608]
[1736183108240,24.41003907,220.32,220.27,8.70334402]
[1736183108452,8.70334402,220.29,220.21,0.12549]
[1736183108746,8.70334402,220.27,220.2,8.70334402]
[1736183108953,8.70334402,220.26,220.2,8.70334402]
[1736183109148,8.70334402,220.28,220.22,8.70334402]
[1736183109363,0.25098,220.28,220.13,1.5943]
[1736183109534,0.12549,220.26,220.18,8.70334402]
[1736183109858,8.82883402,220.26,220.2,8.70334402]
[1736183110054,8.82883402,220.26,220.19,8.70334402]
[1736183110262,8.70334402,220.25,220.19,8.70334402]
[1736183110558,2.28,220.25,220.22,8.70334402]
[1736183111235,1.5882,220.27,220.21,8.70334402]
[1736183111548,2.28,220.27,220.22,8.70334402]
[1736183111751,2.28,220.27,220.23,8.70334402]
[1736183113236,2.28,220.27,220.17,11.3548]
[1736183113431,2.28,220.27,220.21,8.70334402]
[1736183114759,10.98334402,220.27,220.2,8.70334402]
[1736183115256,2.28,220.27,220.2,8.70334402]
[1736183115837,2.28,220.27,220.22,8.70334402]
[1736183116260,2.28,220.27,220.23,8.70334402]
[1736183116453,2.28,220.27,220.24,8.70334402]
[1736183116653,2.28,220.27,220.23,8.70334402]
[1736183117058,2.28,220.27,220.24,8.70334402]
[1736183118256,2.28,220.27,220.23,8.70334402]
[1736183118566,2.28,220.27,220.15,0.12549]
[1736183118938,2.28,220.27,220.2,8.70334402]
[1736183119864,0.12549,220.26,220.2,8.70334402]
[1736183120041,8.82883402,220.26,220.19,8.70334402]
[1736183120363,0.12549,220.26,220.2,8.70334402]
[1736183120744,0.12549,220.26,220.21,8.70334402]
[1736183121264,0.12549,220.26,220.2,8.70334402]
[1736183121760,6.0907,220.25,220.2,8.70334402]
[1736183121965,6.0907,220.25,220.22,8.70334402]
[1736183122147,2.28,220.27,220.22,8.70334402]
[1736183122973,2.28,220.27,220.21,8.70334402]
[1736183122974,0.12549,220.26,220.21,8.70334402]
[1736183123153,0.12549,220.26,220.22,8.70334402]
[1736183124291,0.25098,220.26,220.21,8.70334402]
[1736183124790,8.95432402,220.26,220.19,8.70334402]
[1736183125451,0.25098,220.26,220.2,8.70334402]
[1736183125890,8.95432402,220.26,220.19,8.70334402]
[1736183126095,0.25098,220.26,220.2,8.70334402]
[1736183127590,0.25098,220.26,220.13,12.9512]
[1736183127591,8.95432402,220.26,220.19,8.70334402]
[1736183127756,8.95432402,220.26,220.13,12.9512]
[1736183127757,8.70334402,220.23,220.13,1.5943]
[1736183127961,8.70334402,220.23,220.16,8.70334402]
[1736183128273,33.6297,220.27,220.11,0.03958884]
[1736183128274,8.70334402,220.17,220.11,0.03958884]
[1736183128489,2.28,220.16,220.11,0.03958884]
[1736183128697,8.70334402,220.14,220.11,0.03958884]
[1736183130058,8.70334402,220.15,220.11,0.03958884]
[1736183131477,7.8636,220.22,220.11,8.74293286]
[1736183131668,8.70334402,220.2,220.14,8.70334402]
[1736183131979,7.8636,220.22,220.11,0.03958884]
[1736183131980,16.56694402,220.22,220.11,0.03958884]
[1736183132191,8.70334402,220.21,220.14,8.70334402]
[1736183132562,16.56694402,220.22,220.15,8.70334402]
[1736183134182,8.70334402,220.21,220.15,8.70334402]
[1736183135185,2.28,220.21,220.15,8.70334402]
[1736183135479,2.28,220.21,220.16,8.70334402]
[1736183135863,2.28,220.21,220.11,0.03958884]
[1736183136063,7.8636,220.22,220.16,8.70334402]
[1736183136262,10.1436,220.22,220.18,8.70334402]
[1736183136575,11.3502,220.26,220.11,34.85296492]
[1736183136576,6.5851,220.27,220.2,8.70334402]
[1736183136781,2.28,220.26,220.2,8.70334402]
[1736183136957,2.28,220.26,220.21,8.70334402]
[1736183137163,2.28,220.26,220.2,8.70334402]
[1736183137360,2.28,220.25,220.2,8.70334402]
[1736183137862,6.5851,220.27,220.21,8.70334402]
[1736183138189,2.28,220.26,220.21,8.70334402]
[1736183138373,6.5851,220.27,220.21,8.70334402]
[1736183138572,17.56844402,220.27,220.2,8.70334402]
[1736183138876,8.70334402,220.24,220.12,11.3574]
[1736183139187,17.56844402,220.27,220.21,8.70334402]
[1736183139488,17.56844402,220.27,220.22,8.70334402]
[1736183139489,8.8651,220.27,220.22,8.70334402]
[1736183139956,17.56844402,220.27,220.21,8.70334402]
[1736183140156,17.56844402,220.27,220.15,11.3556]
[1736183140380,17.56844402,220.27,220.2,8.70334402]
[1736183140762,8.70334402,220.26,220.2,8.70334402]
[1736183141179,17.56844402,220.27,220.21,8.70334402]
[1736183141680,17.56844402,220.27,220.12,11.3574]
[1736183141681,8.8651,220.27,220.23,8.70334402]
[1736183142182,3.7868,220.28,220.24,8.70334402]
[1736183142389,2.28,220.3,220.25,8.70334402]
[1736183143797,2.28,220.3,220.16,11.3553]
[1736183143798,24.41003907,220.32,220.29,8.70334402]
[1736183144002,22.13003907,220.32,220.29,8.70334402]
[1736183144503,22.13003907,220.32,220.28,8.70334402]
[1736183144861,22.13003907,220.32,220.29,8.70334402]
[1736183145286,22.13003907,220.32,220.31,8.70334402]
[1736183145618,2.28,220.38,220.31,8.70334402]
[1736183145896,2.28,220.38,220.32,8.70334402]
[1736183146393,2.28,220.38,220.34,8.70334402]
[1736183146575,2.28,220.38,220.33,8.70334402]
[1736183146966,2.28,220.39,220.32,8.70334402]
[1736183147165,10.98334402,220.39,220.32,8.70334402]
[1736183148090,2.28,220.39,220.33,8.70334402]
[1736183148566,10.98334402,220.39,220.32,8.70334402]
[1736183148762,0.25098,220.34,220.2,12.9551]
[1736183148965,8.70334402,220.33,220.26,8.70334402]
[1736183149168,8.95432402,220.34,220.27,8.70334402]
[1736183149793,0.25098,220.34,220.28,8.70334402]
[1736183150284,11.3445,220.37,220.29,8.70334402]
[1736183150488,8.70334402,220.36,220.29,8.70334402]
[1736183151270,23.776884,220.37,220.2,12.9551]
[1736183151481,8.70334402,220.29,220.22,8.70334402]
[1736183151682,8.70334402,220.29,220.21,8.70334402]
[1736183152484,8.95432402,220.3,220.22,8.70334402]
[1736183152687,8.95432402,220.3,220.23,8.70334402]
[1736183153089,0.25098,220.3,220.24,8.70334402]
[1736183153392,8.95432402,220.3,220.22,8.70334402]
[1736183153591,8.70334402,220.28,220.21,8.70334402]
[1736183153792,8.95432402,220.27,220.15,1.5173]
[1736183153990,8.95432402,220.26,220.19,8.70334402]
[1736183154375,8.70334402,220.27,220.2,8.70334402]
[1736183154572,8.70334402,220.28,220.21,8.70334402]
[1736183155179,8.82883402,220.27,220.2,8.70334402]
[1736183155373,8.70334402,220.26,220.18,8.70334402]
[1736183156492,0.12549,220.26,220.2,8.70334402]
[1736183156689,2.40549,220.26,220.2,8.70334402]
[1736183157084,8.70334402,220.24,220.15,1.5173]
[1736183157275,8.70334402,220.25,220.18,8.70334402]
[1736183157705,11.10883402,220.26,220.19,8.70334402]
[1736183157884,11.10883402,220.26,220.15,1.5173]
[1736183158089,11.10883402,220.26,220.18,8.70334402]
[1736183158090,30.25484402,220.25,220.18,8.70334402]
[1736183159386,8.70334402,220.24,220.17,6.70334402]
[1736183160302,2.28,220.26,220.21,8.70334402]
[1736183160477,6.2948,220.27,220.23,8.70334402]
[1736183160776,2.28,220.29,220.23,8.70334402]
[1736183161004,0.25098,220.28,220.22,8.70334402]
[1736183162201,22.28,220.29,220.23,8.70334402]
[1736183162403,3.7808,220.3,220.24,8.70334402]
[1736183162603,3.7808,220.3,220.18,23.776884]
[1736183162790,3.7808,220.3,220.24,8.70334402]
[1736183163105,6.4568,220.32,220.22,8.70334402]
[1736183163424,10.98334402,220.34,220.22,26.11003206]
[1736183163703,8.70334402,220.32,220.25,8.70334402]
[1736183164201,8.70334402,220.3,220.24,8.70334402]
[1736183164390,8.70334402,220.31,220.24,8.70334402]
[1736183164587,8.70334402,220.32,220.25,8.70334402]
[1736183165607,28.82883402,220.33,220.26,8.70334402]
[1736183166710,8.70334402,220.31,220.25,8.70334402]
[1736183167612,8.70334402,220.31,220.24,8.70334402]
[1736183167983,8.82883402,220.32,220.25,8.70334402]